bitfinex/quotes_ETHUSD_20260103
["timestamp","ask_amount","ask_price","bid_price","bid_amount"]
[1767463905438,3.95495462,3103.7,3103.2,2.35949218]
[1767463935058,7.17694658,3103.7,3103.2,2.35949218]
[1767463941350,3.95495462,3103.7,3103.2,2.35949218]
[1767463948781,7.17694658,3103.7,3103.2,2.35949218]
[1767463954890,3.95495462,3103.7,3103.2,2.35949218]
[1767463959504,7.17694658,3103.7,3103.2,2.35949218]
[1767463960166,3.22216851,3103.5,3103.2,2.35949218]
[1767463968006,8.93436137,3103.5,3103.2,0.002]
[1767463968585,6.44433702,3103.5,3103.2,0.002]
[1767463968817,6.57321109,3103.5,3103.2,0.002]
[1767463969900,3.35104258,3103.5,3103.2,0.002]
[1767463970081,0.73874817,3103.4,3103.2,0.002]
[1767463976536,3.96104135,3103.4,3103.2,0.002]
[1767463980520,3.22229318,3103.4,3103.2,0.002]
[1767463982036,3.35107447,3103.5,3103.2,0.002]
[1767463982332,3.35107447,3103.5,3103.2,2.41810737]
[1767463982533,3.22301893,3103.7,3103.4,2.41610737]
[1767463983936,0.001,3103.7,3103.4,2.41610737]
[1767463984634,3.22175327,3103.9,3103.6,2.41610737]
[1767463985018,3.22167984,3104.0,3103.6,2.41610737]
[1767463987528,0.96740922,3104.1,3103.6,2.41610737]
[1767463987728,3.22214786,3104.5,3104.0,2.41610737]
[1767463987929,0.32221479,3104.4,3104.0,2.41610737]
[1767463988241,3.22214786,3104.5,3104.0,2.41610737]
[1767463989537,0.001,3104.5,3104.0,2.41610737]
[1767463993548,0.001,3104.5,3104.0,2.41410737]
[1767463998253,0.001,3104.5,3104.1,2.41610737]
[1767464000430,0.001,3104.7,3104.3,2.41610737]
[1767464000643,0.001,3104.7,3104.3,2.41410737]
[1767464009271,0.001,3104.7,3104.0,4.18778507]
[1767464009440,0.001,3104.7,3104.1,2.41610737]
[1767464018179,0.001,3104.7,3104.2,2.37744813]
[1767464020268,4.06575942,3104.9,3104.4,2.37744813]
[1767464021182,0.001,3105.0,3104.5,2.37744813]
[1767464021384,2.38979566,3105.4,3104.7,2.37544813]
[1767464022160,3.22056544,3105.1,3104.7,2.37544813]
[1767464022363,3.22032142,3105.3,3104.7,2.37544813]
[1767464023053,6.44064284,3105.3,3104.7,2.37544813]
[1767464032786,6.44064284,3105.3,3104.7,2.37344813]
[1767464038769,6.44064284,3105.3,3104.7,2.37144813]
[1767464043111,3.22032142,3105.3,3104.7,2.37144813]
[1767464043686,0.001,3105.4,3104.9,2.36068932]
[1767464046177,0.001,3105.4,3104.8,0.68824189]
[1767464046495,0.001,3105.4,3104.8,3.34953412]
[1767464046802,0.001,3105.4,3104.9,3.22070899]
[1767464051209,0.001,3105.4,3104.9,3.22270899]
[1767464054212,0.001,3105.4,3104.9,3.22070899]
[1767464061919,0.001,3105.4,3104.9,0.002]
[1767464065104,2.38158123,3105.3,3104.9,0.002]
[1767464068005,5.60190468,3105.3,3104.9,0.002]
[1767464073235,3.22032345,3105.3,3104.9,2.26516459]
[1767464076006,3.22032345,3105.3,3104.9,2.26316459]
[1767464076202,3.19305646,3105.3,3104.9,2.26316459]
[1767464077308,3.19305646,3105.3,3104.9,2.26516459]
[1767464078339,4.10370787,3105.4,3104.9,2.26516459]
[1767464081112,0.001,3105.4,3105.0,2.26316459]
[1767464083242,0.001,3105.4,3105.0,2.26116459]
[1767464085241,0.001,3105.4,3105.0,5.48176754]
[1767464090117,0.001,3105.4,3104.9,0.002]
[1767464090740,0.001,3105.4,3104.9,3.22271239]
[1767464091265,2.32131498,3105.3,3104.9,0.002]
[1767464094053,3.22119712,3105.4,3104.9,0.002]
[1767464099929,2.27197132,3105.4,3104.9,0.002]
[1767464100372,2.31122507,3105.3,3104.6,0.002]
[1767464100587,2.27097132,3105.0,3104.2,2.46810143]
[1767464101830,3.22071564,3104.9,3104.2,2.46810143]
[1767464102031,2.27097132,3104.8,3104.2,2.46810143]
[1767464102231,2.27097132,3104.8,3104.2,5.68952371]
[1767464103759,3.22065661,3105.0,3104.3,2.46810143]
[1767464103959,4.11499413,3105.0,3104.5,2.46810143]
[1767464104665,0.89433752,3105.0,3104.5,2.46810143]
[1767464104840,6.33630948,3105.3,3104.5,2.46810143]
[1767464106945,6.33630948,3105.3,3104.6,5.68912829]
[1767464107958,4.06533816,3105.3,3104.7,2.46810143]
[1767464111062,9.55664764,3105.3,3104.7,2.46810143]
[1767464112339,9.55664764,3105.3,3104.5,2.47010143]
[1767464112661,2.27097132,3105.1,3104.5,2.47010143]
[1767464112867,2.27097132,3105.1,3104.5,0.002]
[1767464114167,5.49158323,3105.0,3104.5,0.002]
[1767464114667,5.49158323,3105.0,3104.6,0.002]
[1767464117074,2.27097132,3104.9,3104.5,1e-08]
[1767464117260,2.27097132,3104.8,3104.5,1e-08]
[1767464120083,3.22092311,3104.7,3104.5,1e-08]
[1767464133104,3.22083264,3104.8,3104.5,1e-08]
[1767464133313,0.001,3105.0,3104.5,2.45587253]
[1767464133597,0.001,3105.0,3104.5,2.70145978]
[1767464133765,0.001,3105.0,3104.5,2.45587253]
[1767464134188,0.001,3105.0,3104.6,2.45587252]
[1767464147601,0.001,3105.0,3104.6,5.67689383]
[1767464147980,0.001,3105.0,3104.7,2.45587252]
[1767464152017,0.001,3105.0,3104.8,2.45587252]
[1767464156192,0.001,3105.4,3104.7,2.94382733]
[1767464156396,0.001,3105.4,3104.9,2.45587252]
[1767464158597,0.001,3105.4,3104.9,5.67657254]
[1767464162221,0.001,3105.4,3105.0,2.49971818]
[1767464162606,0.001,3105.4,3105.2,2.49971818]
[1767464164720,0.001,3105.4,3105.2,5.7201183]
[1767464164920,0.001,3105.4,3105.3,0.57201183]
[1767464165416,0.001,3105.4,3105.3,3.07173001]
[1767464168121,0.001,3105.4,3105.3,2.49971818]
[1767464170311,0.001,3105.4,3105.1,2.49971818]
[1767464173732,0.001,3105.4,3105.2,2.49971818]
[1767464178124,0.001,3105.4,3105.2,5.72006572]
[1767464180301,0.001,3105.4,3105.2,2.49971818]
[1767464181011,0.001,3105.4,3105.2,5.7201135]
[1767464181542,0.001,3105.4,3105.2,2.49971818]
[1767464195953,0.001,3105.4,3105.2,5.72009488]
[1767464196143,0.001,3105.4,3105.2,3.2203767]
[1767464196349,0.001,3105.4,3105.2,5.5197493]
[1767464197556,0.001,3105.4,3105.2,2.2993726]
[1767464203260,0.001,3105.4,3105.0,3.22156143]
[1767464203431,0.001,3105.4,3105.0,5.52093403]
[1767464208329,0.001,3105.4,3105.0,6.39510811]
[1767464219148,0.001,3105.4,3105.0,9.61572002]
[1767464221361,0.001,3105.4,3105.1,2.29633385]
[1767464221967,0.001,3105.4,3105.0,7.31634742]
[1767464221968,0.001,3105.8,3105.5,2.29633385]
[1767464222171,0.001,3106.0,3105.5,2.29633385]
[1767464222380,0.001,3106.0,3105.5,2.52596724]
[1767464223587,0.001,3106.0,3105.6,6.43997938]
[1767464223756,0.001,3106.0,3105.7,2.29633385]
[1767464226462,0.001,3106.0,3105.9,2.29633385]
[1767464228144,0.001,3106.3,3105.8,5.51611619]
[1767464228475,0.001,3106.3,3105.9,3.16992999]
[1767464231378,0.001,3106.3,3106.0,3.21957501]
[1767464232098,0.001,3106.3,3105.9,6.38956328]
[1767464237382,0.001,3106.3,3105.9,0.87359614]
[1767464239895,0.001,3106.3,3105.9,4.09325833]
[1767464244362,0.001,3106.3,3105.9,3.21966219]
[1767464248362,0.001,3106.3,3105.8,3.21978234]
[1767464251787,0.001,3106.3,3105.9,0.001]
[1767464251986,0.001,3106.3,3105.9,2.3449748]
[1767464253888,0.001,3106.3,3106.0,3.21957501]
[1767464254090,0.001,3106.3,3106.1,0.87842]
[1767464255987,0.001,3106.3,3106.1,4.09780412]
[1767464256889,0.001,3106.3,3106.1,0.87842]
[1767464259399,0.001,3106.3,3106.1,0.87642]
[1767464259602,0.001,3106.3,3106.0,3.21953509]
[1767464262308,0.001,3106.3,3105.9,3.22067365]
[1767464263596,0.001,3106.3,3105.9,0.001]
[1767464281507,0.001,3106.3,3105.9,2.45549013]
[1767464282729,0.001,3106.3,3106.1,2.45449013]
[1767464283400,0.001,3106.3,3106.1,3.34395414]
[1767464284406,0.001,3106.3,3106.2,3.21936771]
[1767464304762,0.001,3106.3,3106.0,0.001]
[1767464305062,0.001,3106.3,3106.0,2.45549013]
[1767464306165,0.844,3107.0,3106.0,2.45549013]
[1767464306338,0.40625709,3106.9,3106.0,2.45549013]
[1767464307468,1.14196853,3106.8,3106.1,8.89343285]
[1767464320774,1.14396853,3106.8,3106.1,8.89343285]
[1767464321376,0.002,3106.8,3106.2,2.37133296]
[1767464321682,0.002,3106.8,3106.4,8.80965384]
[1767464325492,0.844,3107.0,3106.5,2.37133296]
[1767464325656,1.14296853,3107.3,3106.5,2.37133296]
[1767464326562,1.14296853,3107.3,3106.6,6.43790638]
[1767464332554,1.14296853,3107.3,3106.7,2.37133296]
[1767464332759,0.001,3107.3,3106.7,2.37133296]
[1767464333513,1.14296853,3107.3,3106.8,3.21874597]
[1767464338107,1.14296853,3107.3,3106.5,2.37133296]
[1767464338403,1.14296853,3107.3,3106.6,0.2371333]
[1767464342991,1.14296853,3107.3,3106.7,3.21884958]
[1767464345613,1.14296853,3107.3,3106.6,6.43784434]
[1767464348481,1.14296853,3107.3,3106.6,8.76602198]
[1767464352417,1.14296853,3107.3,3106.7,2.32817764]
[1767464352607,1.34166538,3107.3,3106.7,2.32817764]
[1767464353513,1.34166538,3107.3,3106.8,3.21874597]
[1767464359416,1.14296853,3107.3,3106.8,3.21874597]
[1767464359595,0.001,3107.3,3106.8,3.21874597]
[1767464360126,0.001,3107.3,3106.8,8.76566958]
[1767464360421,0.001,3107.3,3106.9,2.32817764]
[1767464361294,0.001,3107.3,3107.0,3.21853878]
[1767464363028,0.001,3107.3,3106.8,3.21874597]
[1767464363229,0.001,3107.3,3106.8,6.43749194]
[1767464363847,0.001,3107.3,3106.8,8.76566958]
[1767464364139,0.002,3107.6,3107.1,2.32817764]
[1767464365944,0.002,3107.6,3107.2,8.76484086]
[1767464367020,0.002,3108.1,3107.5,2.32817764]
[1767464368147,0.002,3108.1,3107.6,5.546095]
[1767464368336,0.96725251,3108.1,3107.6,5.546095]
[1767464371139,0.96725251,3108.1,3107.6,2.32817764]
[1767464372939,0.96725251,3108.1,3107.6,5.54609356]
[1767464374458,0.002,3108.1,3107.7,2.39928688]
[1767464375838,0.002,3108.1,3107.9,2.39928688]
[1767464380259,0.002,3108.1,3107.8,3.21771027]
[1767464380449,1.14396853,3108.1,3107.8,3.21771027]
[1767464380754,0.002,3108.1,3107.8,3.21771027]
[1767464383165,0.002,3108.1,3107.7,5.61708052]
[1767464383657,1.14196853,3108.0,3107.3,2.39928688]
[1767464383858,1.14196853,3108.0,3107.4,3.21806799]
[1767464383859,0.03635769,3107.9,3107.4,3.21806799]
[1767464384175,1.14196853,3108.0,3107.5,3.21800505]
[1767464384467,2.10720862,3108.0,3107.5,3.21800505]
[1767464384668,2.10720862,3108.0,3107.4,3.21807906]
[1767464384866,0.04022008,3107.9,3107.4,3.21807906]
[1767464385369,1.14196853,3107.9,3107.3,5.61745857]
[1767464385664,0.96530221,3107.8,3107.3,5.61745857]
[1767464386772,0.96530221,3107.8,3107.4,2.39928688]
[1767464388178,3.21939969,3108.1,3107.5,2.39928688]
[1767464388375,0.96525562,3108.0,3107.5,2.39928688]
[1767464392758,0.96525562,3108.0,3107.5,5.61729413]
[1767464393066,0.96525562,3108.0,3107.6,2.39928688]
[1767464396574,4.18275979,3108.0,3107.6,2.39928688]
[1767464400674,4.18275979,3108.0,3107.5,0.001]
[1767464400968,5.03737273,3108.0,3107.5,0.001]
[1767464401173,1.14196853,3107.9,3107.5,0.001]
[1767464401364,1.14196853,3107.9,3107.3,0.001]
[1767464401564,1.14196853,3107.9,3107.3,0.845]
[1767464402288,1.14196853,3107.9,3107.4,3.21812164]
[1767464402465,0.93987423,3107.9,3107.4,3.21812164]
[1767464403369,0.93987423,3107.9,3107.4,5.6163407]
[1767464403569,4.18275979,3108.0,3107.4,5.6163407]
[1767464405661,4.18275979,3108.0,3107.4,2.39821906]
[1767464408993,4.18275979,3108.0,3107.4,5.61634254]
[1767464409482,4.18275979,3108.0,3107.4,2.39821906]
[1767464409991,4.18275979,3108.0,3107.4,2.39921906]
[1767464410194,4.92317588,3108.0,3107.4,2.39921906]
[1767464410372,4.92517588,3108.0,3107.4,2.39921906]
[1767464410690,4.92517588,3108.0,3107.4,5.61734132]
[1767464410876,4.92517588,3108.0,3107.5,2.39821906]
[1767464411265,3.95992026,3108.0,3107.5,2.39821906]
[1767464412793,0.71793213,3107.9,3107.5,2.39821906]
[1767464413599,3.21950417,3108.0,3107.5,2.39821906]
[1767464414808,0.002,3108.0,3107.5,2.39821906]
[1767464419403,0.002,3108.0,3107.4,0.001]
[1767464419577,0.002,3108.0,3107.4,2.39921906]
[1767464426504,0.002,3108.0,3107.4,0.001]
[1767464426705,0.002,3108.0,3107.4,2.39921906]
[1767464432213,0.002,3108.0,3107.5,2.33658085]
[1767464443925,0.002,3108.0,3107.6,2.33658085]
[1767464445824,0.002,3108.0,3107.8,2.33658085]
[1767464447836,0.002,3108.2,3108.1,2.33658085]
[1767464448209,0.002,3108.6,3108.2,2.33658085]
[1767464451211,0.002,3108.6,3108.3,2.33658085]
[1767464453938,0.002,3108.6,3108.1,2.33658085]
[1767464461844,0.002,3108.6,3108.1,5.55398011]
[1767464462626,0.002,3108.6,3108.1,2.39746904]
[1767464467845,0.002,3108.6,3108.2,2.39746904]
[1767464481055,0.002,3108.6,3108.3,2.39746904]
[1767464482566,0.002,3108.6,3108.4,2.39746904]
[1767464482735,0.002,3108.6,3108.4,2.39550735]
[1767464492345,0.002,3108.6,3108.5,2.3056646]
[1767464492550,3.21636486,3109.1,3108.5,2.3056646]
[1767464493457,6.43252282,3109.2,3108.5,2.3056646]
[1767464493652,7.17246682,3109.2,3108.5,2.3056646]
[1767464501485,7.17246682,3109.2,3108.5,2.3066646]
[1767464502285,7.17446682,3109.2,3108.5,2.3066646]
[1767464503386,7.17642851,3109.2,3108.5,2.3066646]
[1767464507686,2.30762629,3109.0,3108.1,0.001]
[1767464508192,2.30762629,3109.0,3108.1,2.3066646]
[1767464509388,6.43314354,3108.9,3108.1,2.3066646]
[1767464511900,2.30762629,3108.9,3108.1,2.3066646]
[1767464512707,2.30762629,3108.7,3108.1,2.3066646]
[1767464512867,2.42334076,3108.5,3108.0,0.001]
[1767464513067,2.42334076,3108.4,3107.6,2.3056646]
[1767464513998,6.43438534,3108.3,3107.6,2.3056646]
[1767464514597,8.8577261,3108.3,3107.6,2.3056646]
[1767464516180,2.42334076,3108.2,3107.6,2.3056646]
[1767464516900,3.30909267,3108.2,3107.4,5.52475002]
[1767464517497,2.42334076,3108.1,3107.4,2.3066646]
[1767464517694,2.42334076,3107.9,3107.4,0.001]
[1767464519019,5.6409793,3107.9,3107.4,0.001]
[1767464520388,3.21763854,3107.9,3107.4,2.26526283]
[1767464521505,5.68070805,3108.1,3107.4,2.26526283]
[1767464521506,3.21750321,3108.0,3107.4,2.26526283]
[1767464521912,3.21750321,3108.0,3107.4,5.4833815]
[1767464522712,6.64574723,3108.3,3107.5,2.26426283]
[1767464522902,3.21733452,3108.2,3107.5,2.26426283]
[1767464523489,3.21722247,3108.3,3107.7,2.26426283]
[1767464523690,3.2170296,3108.5,3107.7,2.26426283]
[1767464524007,3.21690861,3108.6,3107.7,2.26426283]
[1767464524308,3.21690861,3108.6,3107.9,2.26426283]
[1767464526314,2.46328143,3108.6,3107.9,5.48183243]
[1767464527010,6.43335048,3108.8,3108.0,2.26426283]
[1767464527181,8.89663191,3108.8,3108.0,2.26426283]
[1767464534411,8.89663191,3108.8,3108.1,2.26426283]
[1767464534712,0.97426319,3108.7,3108.1,2.26426283]
[1767464537110,6.43335048,3108.8,3108.1,2.26426283]
[1767464539808,8.89663191,3108.8,3108.1,2.26426283]
[1767464550099,8.89863191,3108.8,3108.1,2.26426283]
[1767464554211,2.47129286,3108.7,3108.1,2.26426283]
[1767464555039,3.21688219,3108.6,3108.1,2.26426283]
[1767464560138,3.21888219,3108.6,3108.1,2.26426283]
[1767464577474,0.002,3108.6,3108.1,2.26426283]
[1767464581149,0.002,3108.6,3108.1,5.48164466]
[1767464581747,0.002,3108.6,3108.2,2.30354784]
[1767464583527,0.002,3108.6,3108.2,6.07303329]
[1767464583847,0.002,3108.8,3108.5,2.30354784]
[1767464584348,0.002,3108.8,3108.5,5.52051533]
[1767464585332,0.002,3108.8,3108.6,2.30354784]
[1767464588756,5.65850999,3109.2,3108.7,2.30354784]
[1767464588757,3.21830817,3109.2,3108.7,2.30354784]
[1767464588929,3.21830817,3109.2,3108.7,2.85559013]
[1767464589129,3.21830817,3109.2,3108.7,0.55204229]
[1767464589757,5.65850999,3109.2,3108.5,5.52050061]
[1767464590165,2.48040638,3109.1,3108.3,2.30354784]
[1767464590331,2.44020182,3109.1,3108.3,2.30354784]
[1767464590531,2.44020182,3109.1,3108.3,5.52067223]
[1767464591159,2.44020182,3109.1,3108.4,3.21707804]
[1767464592479,3.21646831,3109.0,3108.4,3.21707804]
[1767464594538,3.21646831,3109.0,3108.4,5.52062588]
[1767464596268,3.21646831,3109.0,3108.4,5.52162588]
[1767464596471,3.21846831,3109.0,3108.4,5.52162588]
[1767464597677,0.16984002,3110.3,3109.0,2.30354784]
[1767464597883,0.002,3110.3,3109.6,2.30354784]
[1767464599147,3.21712556,3110.3,3109.6,2.30354784]
[1767464599556,3.21712556,3110.3,3109.6,5.51932493]
[1767464600875,5.65732738,3110.3,3109.6,3.21577709]
[1767464601076,5.65732738,3110.3,3109.6,3.85895818]
[1767464601260,5.65732738,3110.3,3109.6,6.16250602]
[1767464602273,5.65732738,3110.3,3109.7,2.30354784]
[1767464604776,5.65732738,3110.3,3109.7,5.51928257]
[1767464605770,2.44220182,3110.3,3109.7,5.51928257]
[1767464606448,0.002,3110.3,3109.8,2.30354784]
[1767464606649,0.002,3110.3,3109.9,2.8554761]
[1767464607178,0.002,3110.3,3110.0,0.5]
[1767464609680,2.44220182,3110.1,3109.9,0.55192826]
[1767464609866,0.002,3110.1,3109.9,0.55192826]
[1767464614486,0.002,3110.1,3109.7,3.21573473]
[1767464614487,0.002,3110.1,3109.7,5.54533058]
[1767464617965,2.46783041,3109.7,3109.1,0.0198703]
[1767464618164,2.46783041,3109.7,3109.2,3.216197]
[1767464618977,2.46783041,3109.7,3109.3,3.21614749]
[1767464619684,2.46783041,3110.0,3109.2,3.21622452]
[1767464619889,2.71481345,3109.9,3109.1,5.54589382]
[1767464620091,3.21564087,3109.8,3109.2,3.21625911]
[1767464620404,3.21564087,3109.8,3109.1,5.54591272]
[1767464620880,2.46783041,3109.7,3109.0,3.21640759]
[1767464621263,3.67596838,3109.7,3109.0,3.21646365]
[1767464621479,3.67596838,3109.7,3108.9,2.32959585]
[1767464621480,2.46783041,3109.6,3108.9,5.54613281]
[1767464622091,5.68378152,3109.5,3108.9,5.54613281]
[1767464623275,2.46783041,3109.4,3108.9,3.21653696]
[1767464624493,5.6836781,3109.6,3108.9,5.54613281]
[1767464626099,5.6836781,3109.6,3108.9,5.54713281]
[1767464627300,2.46783041,3109.5,3108.9,5.54713281]
[1767464629311,2.46783041,3109.3,3108.9,0.001]
[1767464629972,0.24698304,3109.9,3109.0,2.32959585]
[1767464630172,2.46783041,3109.9,3109.1,2.32959585]
[1767464631201,2.46783041,3111.3,3109.9,2.32959585]
[1767464631400,2.46783041,3110.7,3109.7,3.21573335]
[1767464631606,2.46783041,3110.7,3109.6,2.32959585]
[1767464631778,2.71461345,3110.7,3109.8,3.21561117]
[1767464632178,2.71461345,3110.7,3109.8,5.54520702]
[1767464632375,2.71461345,3110.7,3109.8,2.32959585]
[1767464632598,2.71461345,3110.7,3109.8,5.5451481]
[1767464632801,2.71461345,3110.7,3109.6,3.53308993]
[1767464632802,2.46783041,3112.0,3110.6,0.05]
[1767464633103,2.46783041,3111.8,3110.8,2.32959585]
[1767464633303,10.4815542,3112.5,3110.8,2.32959585]
[1767464633304,2.46783041,3112.2,3111.0,2.32959585]
[1767464633489,3.21326435,3112.1,3111.0,2.32959585]
[1767464633674,4.10268022,3112.1,3111.2,2.32959585]
[1767464633874,4.10268022,3112.1,3111.3,2.32959585]
[1767464634303,3.21295463,3112.4,3111.5,2.32959585]
[1767464634514,2.46783041,3112.3,3111.5,2.32959585]
[1767464634681,6.42590926,3112.4,3111.5,2.32959585]
[1767464635096,2.46783041,3112.3,3111.5,3.17259585]
[1767464636113,8.89415261,3112.2,3111.5,3.17259585]
[1767464636608,0.002,3112.1,3111.5,3.17259585]
[1767464637010,2.46783041,3112.0,3111.3,2.32959585]
[1767464637186,2.46783041,3112.0,3111.3,3.17259585]
[1767464638189,5.68130127,3111.9,3111.3,2.32959585]
[1767464638807,8.89477213,3111.9,3111.3,2.32959585]
[1767464639410,2.46783041,3111.8,3111.1,2.32959585]
[1767464639615,3.35730762,3111.7,3111.1,3.17259585]
[1767464639798,3.35730762,3111.7,3111.1,2.32959585]
[1767464640003,3.21388397,3111.5,3110.9,3.11080674]
[1767464640915,6.42776794,3111.5,3110.9,3.11080674]
[1767464641114,3.21388397,3111.5,3110.9,3.11080674]
[1767464641610,2.344736,3111.4,3110.9,0.843]
[1767464642124,6.52480869,3111.5,3110.9,0.843]
[1767464642414,3.21381366,3111.6,3111.0,2.26780674]
[1767464643523,6.42718502,3111.8,3111.0,2.26780674]
[1767464644307,8.77192102,3111.8,3111.0,2.26780674]
[1767464645318,8.77192102,3111.8,3111.1,2.26780674]
[1767464645618,0.002,3111.5,3111.1,2.26780674]
[1767464649016,0.002,3111.5,3110.9,0.843]
[1767464649520,2.5814096,3111.5,3110.9,0.843]
[1767464649812,2.346736,3111.5,3110.9,0.843]
[1767464650022,3.21398727,3111.4,3110.7,5.48245765]
[1767464650220,2.344736,3111.3,3110.7,2.26780674]
[1767464650522,2.344736,3111.3,3110.7,3.11080674]
[1767464652217,5.55890421,3111.3,3110.7,3.11080674]
[1767464652996,2.344736,3111.2,3110.7,0.843]
[1767464654608,2.344736,3111.1,3110.5,0.843]
[1767464655124,2.344736,3111.1,3110.5,0.844]
[1767464657329,2.344736,3110.9,3110.5,0.001]
[1767464662124,5.5593417,3110.9,3110.5,0.001]
[1767464663523,0.002,3111.5,3110.5,2.26880674]
[1767464663524,2.344736,3111.2,3110.5,2.26880674]
[1767464663922,5.55872327,3111.4,3110.5,2.26880674]
[1767464664294,5.55872327,3111.4,3110.6,5.4826206]
[1767464664495,5.55872327,3111.4,3110.7,2.26780674]
[1767464664727,6.43618687,3111.4,3110.7,2.26780674]
[1767464665531,0.002,3111.5,3110.7,2.26780674]
[1767464665707,0.1676905,3112.7,3111.3,2.26780674]
[1767464665913,3.21528372,3112.1,3111.5,2.26780674]
[1767464666108,0.002,3112.1,3111.5,2.26780674]
[1767464667210,3.21527453,3112.1,3111.5,2.26780674]
[1767464667831,0.002,3112.1,3111.6,2.26780674]
[1767464668728,6.42590926,3112.4,3111.5,3.21386869]
[1767464669031,6.42590926,3112.4,3111.6,1.12651028]
[1767464669233,5.55769063,3112.4,3111.6,1.12651028]
[1767464669611,2.31218885,3112.4,3111.5,3.21386869]
[1767464669816,3.21364114,3112.6,3112.0,1.15905743]
[1767464670011,0.56410188,3112.5,3112.0,2.00205743]
[1767464670212,0.00083152,3112.6,3112.1,1.15905743]
[1767464670529,2.4262092,3112.6,3112.0,0.843]
[1767464670906,2.4262092,3112.6,3112.0,2.00205743]
[1767464671305,2.40551876,3112.6,3112.1,0.843]
[1767464671729,0.00083152,3112.6,3112.1,2.00205743]
[1767464672036,0.00083152,3112.6,3112.1,1.15905743]
[1767464672203,0.64383842,3112.6,3112.2,0.843]
[1767464672409,3.04852566,3112.6,3112.2,0.843]
[1767464672936,0.64383842,3112.6,3112.0,1.15905743]
[1767464673126,3.04852566,3112.6,3112.2,0.843]
[1767464673325,0.00083152,3112.6,3112.2,0.843]
[1767464673527,2.40551876,3112.6,3112.2,0.843]
[1767464674433,5.61828622,3112.6,3112.1,0.843]
[1767464674629,2.40468724,3112.5,3111.8,4.37256437]
[1767464674809,2.40468724,3112.5,3111.8,0.843]
[1767464675010,2.40468724,3112.4,3111.8,0.843]
[1767464676137,2.40468724,3112.4,3111.9,3.2134646]
[1767464676635,2.40468724,3112.4,3111.8,4.05654007]
[1767464676805,2.40668724,3112.4,3111.8,4.05654007]
[1767464677608,2.40668724,3112.4,3111.8,5.2155975]
[1767464677833,0.002,3112.4,3111.9,1.15905743]
[1767464678428,0.002,3112.4,3111.9,4.37248415]
[1767464681213,2.40468724,3112.3,3111.9,3.21342672]
[1767464681419,0.002,3112.4,3111.8,4.05652548]
[1767464683120,2.40668724,3112.4,3111.8,4.05652548]
[1767464685219,0.002,3112.4,3111.9,1.15905743]
[1767464685429,2.40668724,3112.4,3111.8,4.05657413]
[1767464685739,2.40668724,3112.4,3111.8,4.05757413]
[1767464686443,0.002,3112.4,3111.8,8.43020569]
[1767464686741,0.002,3112.4,3111.9,1.15905743]
[1767464687642,0.002,3112.4,3112.0,3.2133676]
[1767464688030,0.002,3112.4,3112.0,4.37242503]
[1767464690346,3.21246356,3112.9,3112.0,4.37242503]
[1767464690347,0.003,3114.4,3113.2,1.15622591]
[1767464690545,0.003,3114.4,3113.8,1.07898844]
[1767464690750,0.003,3114.4,3113.9,0.843]
[1767464690946,2.40468724,3114.9,3114.0,1.07898844]
[1767464691349,2.40468724,3114.8,3114.0,3.21129694]
[1767464691552,2.40468724,3114.8,3113.6,1.07898844]
[1767464691853,2.40468724,3114.8,3113.7,0.843]
[1767464692024,2.40468724,3114.8,3113.7,4.05453328]
[1767464692219,3.2101132,3115.2,3113.7,1.07898844]
[1767464692220,2.40468724,3115.1,3113.7,1.07898844]
[1767464692550,2.40468724,3115.1,3113.8,5.13341535]
[1767464692746,2.40468724,3115.1,3113.9,1.07898844]
[1767464693046,2.40468724,3115.1,3114.0,4.29025119]
[1767464693248,4.05235554,3115.9,3114.6,0.19650636]
[1767464693249,1.85468724,3115.9,3114.6,0.19650636]
[1767464693448,1.85468724,3115.9,3114.3,0.74650636]
[1767464693652,1.85468724,3115.9,3114.4,1.58950636]
[1767464694129,1.85468724,3115.9,3114.4,0.74650636]
[1767464694459,2.40468724,3115.7,3114.6,0.74650636]
[1767464695238,2.40468724,3116.0,3114.8,0.74650636]
[1767464695638,2.40468724,3117.0,3115.3,0.74650636]
[1767464695837,2.40468724,3117.0,3115.7,0.74650636]
[1767464696027,0.57802816,3116.9,3115.7,0.74650636]
[1767464696227,0.41702816,3116.9,3115.9,0.74650636]
[1767464696450,0.41602816,3116.9,3116.0,1.58950636]
[1767464696624,0.41602816,3116.9,3116.1,0.74650636]
[1767464696824,0.41602816,3116.9,3116.0,0.843]
[1767464696825,2.40468724,3117.1,3116.2,0.842]
[1767464697025,2.40468724,3117.1,3115.7,0.74650636]
[1767464697226,2.40468724,3116.9,3115.4,0.842]
[1767464697832,2.40468724,3116.9,3115.1,3.21016981]
[1767464698036,2.40468724,3116.9,3115.2,0.842]
[1767464698236,2.40468724,3116.7,3115.3,0.842]
[1767464698552,2.40468724,3116.7,3114.7,0.74650636]
[1767464698748,2.40468724,3116.7,3114.8,0.842]
[1767464699148,2.40468724,3116.7,3114.3,0.74650636]
[1767464699451,2.40468724,3116.5,3114.4,0.842]
[1767464699652,2.40468724,3116.3,3114.4,0.842]
[1767464700132,2.40468724,3116.3,3114.4,7.26378268]
[1767464700634,2.40468724,3116.3,3114.4,6.42178268]
[1767464700835,2.40468724,3116.3,3114.3,3.21097882]
[1767464701163,2.4955094,3116.0,3114.3,3.21097882]
[1767464701331,2.4955094,3115.8,3114.0,3.21128776]
[1767464701527,14.0138946,3115.9,3113.9,0.842]
[1767464701528,2.4955094,3115.6,3113.9,0.842]
[1767464702153,2.4955094,3115.6,3113.9,4.05336214]
[1767464702360,2.4955094,3115.6,3113.9,0.842]
[1767464703231,2.4955094,3115.4,3113.9,4.05337667]
[1767464703431,9.62927298,3115.5,3113.9,4.05337667]
[1767464703432,2.4955094,3115.2,3113.9,4.62999494]
[1767464703944,2.4955094,3115.2,3113.9,3.78799494]
[1767464704259,2.4955094,3115.2,3113.9,0.57661827]
[1767464704927,2.4955094,3115.2,3113.9,3.78801554]
[1767464705334,2.4955094,3115.0,3113.9,0.57661827]
[1767464705532,2.4955094,3114.8,3113.9,0.57661827]
[1767464706860,2.4955094,3114.8,3113.6,4.05364357]
[1767464707151,2.4955094,3114.8,3113.7,3.21159385]
[1767464707754,2.4955094,3114.6,3113.7,3.21159385]
[1767464708457,2.4955094,3114.6,3113.8,3.21148271]
[1767464708659,2.4955094,3114.6,3113.7,3.21157965]
[1767464708857,2.4955094,3114.6,3113.7,0.72653795]